fUSD/lending_fUSD_20240805
["ID","MTS","AMOUNT","RATE_DAILY","PERIOD"]
[334224429,1722844348069,-861.54,0.00044657,60]
[334224430,1722844348114,-629.51,0.00044657,60]
[334224431,1722844348163,-500.0,0.00044657,60]
[334224432,1722844348209,-500.0,0.00044657,60]
[334224433,1722844348259,-509.12309281,0.00044657,60]
[334224434,1722844348308,-500.0,0.00044657,60]
[334224435,1722844348357,-2019.2,0.00044657,60]
[334224436,1722844348404,-1081.51,0.00044657,60]
[334224437,1722844348453,-500.0,0.00044657,60]
[334224438,1722844348502,-500.0,0.00044657,60]
[334224439,1722844348546,-500.0,0.00044657,60]
[334224440,1722844348592,-3091.06,0.00044657,60]
[334224441,1722844348636,-500.0,0.00044657,60]
[334224442,1722844348680,-1926.55,0.00044657,60]
[334224443,1722844348728,-500.0,0.00044657,60]
[334224444,1722844348774,-500.0,0.00044657,60]
[334224445,1722844348818,-500.0,0.00044657,60]
[334224446,1722844348862,-500.0,0.00044657,60]
[334224447,1722844348906,-996.23,0.00044657,60]
[334224448,1722844348949,-500.0,0.00044657,60]
[334224449,1722844348996,-500.0,0.00044657,60]
[334224450,1722844349041,-500.0,0.00044657,60]
[334224451,1722844349086,-1073.18,0.00044657,60]
[334224452,1722844349131,-3342.17,0.00044657,60]
[334224453,1722844349176,-2364.16,0.00044657,60]
[334224454,1722844349222,-500.0,0.00044657,60]
[334224455,1722844349265,-500.0,0.00044657,60]
[334224456,1722844349309,-641.18,0.00044657,60]
[334224457,1722844349355,-871.78,0.00044657,60]
[334224458,1722844349402,-500.0,0.00044657,60]
[334224459,1722844349454,-500.0,0.00044657,60]
[334224460,1722844349506,-500.0,0.00044657,60]
[334224461,1722844349554,-1176.28,0.00044657,60]
[334224462,1722844349601,-500.0,0.00044657,60]
[334224463,1722844349649,-2932.21,0.00044657,60]
[334224464,1722844349696,-500.0,0.00044657,60]
[334224465,1722844349746,-500.0,0.00044657,60]
[334224466,1722844349792,-500.0,0.00044657,60]
[334224467,1722844349837,-500.0,0.00044657,60]
[334224468,1722844349884,-1369.01,0.00044657,60]
[334224469,1722844349932,-500.0,0.00044657,60]
[334224470,1722844349978,-962.6,0.00044657,60]
[334224471,1722844350027,-551.05,0.00044657,60]
[334224472,1722844350076,-1590.64,0.00044657,60]
[334224473,1722844350123,-500.0,0.00044657,60]
[334224474,1722844350170,-368.80354158,0.00044657,60]
[334224475,1722844350227,-929.8,0.00044657,60]
[334224476,1722844350271,-500.0,0.00044657,60]
[334224477,1722844350316,-2220.92,0.00044657,60]
[334224478,1722844350363,-1744.69,0.00044657,60]
[334224479,1722844350409,-1678.91,0.00044657,60]
[334224480,1722844350455,-251.8301781,0.00044657,60]
[334224481,1722844350507,-1493.19,0.00044657,60]
[334224482,1722844350552,-1416.08,0.00044657,60]
[334224483,1722844350597,-697.66,0.00044657,60]
[334224484,1722844350641,-500.0,0.00044657,60]
[334224485,1722844350686,-3024.71,0.00044657,60]
[334224486,1722844350809,-996.96,0.00044657,60]
[334224487,1722844350853,-744.97,0.00044657,60]
[334224488,1722844350896,-500.0,0.00044657,60]
[334224489,1722844350939,-500.0,0.00044657,60]
[334224490,1722844350982,-2398.98,0.00044657,60]
[334224491,1722844351025,-2176.07,0.00044657,60]
[334224492,1722844351069,-552.07,0.00044657,60]
[334224493,1722844351113,-3676.17,0.00044657,60]
[334224494,1722844351157,-500.0,0.00044657,60]
[334224495,1722844351202,-2763.91,0.00044657,60]
[334224496,1722844351245,-500.0,0.00044657,60]
[334224497,1722844351288,-584.29,0.00044657,60]
[334224498,1722844351331,-500.0,0.00044657,60]
[334224499,1722844351377,-1002.08,0.00044657,60]
[334224500,1722844351423,-750.01,0.00044657,60]
[334224501,1722844351472,-1538.08,0.00044657,60]
[334224502,1722844351515,-500.0,0.00044657,60]
[334224503,1722844351557,-500.0,0.00044657,60]
[334224504,1722844351602,-1448.11,0.00044657,60]
[334224505,1722844351645,-500.0,0.00044657,60]
[334224506,1722844351690,-2587.1,0.00044657,60]
[334224507,1722844351735,-500.0,0.00044657,60]
[334224508,1722844351779,-500.0,0.00044657,60]
[334224509,1722844351824,-765.91,0.00044657,60]
[334224510,1722844351867,-500.0,0.00044657,60]
[334224511,1722844351911,-3064.52,0.00044657,60]
[334224512,1722844351956,-500.0,0.00044657,60]
[334224513,1722844352008,-1557.46,0.00044657,60]
[334224514,1722844352054,-533.48,0.00044657,60]
[334224515,1722844352100,-500.0,0.00044657,60]
[334224516,1722844352146,-810.02,0.00044657,60]
[334224517,1722844352195,-500.0,0.00044657,60]
[334224518,1722844352241,-1020.46,0.00044657,60]
[334224519,1722844352288,-1149.76,0.00044657,60]
[334224520,1722844352332,-1605.85,0.00044657,60]
[334224521,1722844352377,-3579.5,0.00044657,60]
[334224522,1722844352422,-503.67449382,0.00044657,60]
[334224523,1722844352470,-956.58,0.00044657,60]
[334224524,1722844352515,-500.0,0.00044657,60]
[334224525,1722844352559,-2490.57,0.00044657,60]
[334224526,1722844352605,-500.0,0.00044657,60]
[334224527,1722844352648,-426.61025235,0.00044657,60]
[334224528,1722844352695,-500.0,0.00044657,60]
[334224529,1722844352742,-500.0,0.00044657,60]
[334224530,1722844352788,-1276.34,0.00044657,60]
[334224531,1722844352834,-500.0,0.00044657,60]
[334224532,1722844352881,-500.0,0.00044657,60]
[334224533,1722844352932,-1139.97,0.00044657,60]
[334224534,1722844352980,-581.94,0.00044657,60]
[334224535,1722844353034,-544.37,0.00044657,60]
[334224536,1722844353080,-500.0,0.00044657,60]
[334224537,1722844353128,-500.0,0.00044657,60]
[334224538,1722844353180,-1206.85,0.00044657,60]
[334224539,1722844353229,-3091.48,0.00044657,60]
[334224540,1722844353276,-969.26,0.00044657,60]
[334224541,1722844353323,-2684.86,0.00044657,60]
[334224542,1722844353373,-1258.7,0.00044657,60]
[334224543,1722844353422,-1112.49,0.00044657,60]
[334224544,1722844353473,-653.32,0.00044657,60]
[334224545,1722844353519,-500.0,0.00044657,60]
[334224546,1722844353566,-818.34,0.00044657,60]
[334224547,1722844353613,-1503.97,0.00044657,60]
[334224548,1722844353662,-500.0,0.00044657,60]
[334224549,1722844353716,-782.47,0.00044657,60]
[334224550,1722844353766,-1117.12,0.00044657,60]
[334224551,1722844353814,-500.0,0.00044657,60]
[334224552,1722844353860,-500.0,0.00044657,60]
[334224553,1722844353906,-1479.62,0.00044657,60]
[334224554,1722844353955,-500.0,0.00044657,60]
[334224555,1722844354006,-500.0,0.00044657,60]
[334224556,1722844354054,-500.0,0.00044657,60]
[334224557,1722844354100,-500.0,0.00044657,60]
[334224558,1722844354146,-500.0,0.00044657,60]
[334224559,1722844354199,-500.0,0.00044657,60]
[334224560,1722844354248,-500.0,0.00044657,60]
[334224561,1722844354295,-4566.79,0.00044657,60]
[334224562,1722844354339,-500.0,0.00044657,60]
[334224563,1722844354383,-665.55,0.00044657,60]
[334224564,1722844354429,-500.0,0.00044657,60]
[334224565,1722844354475,-1862.02,0.00044657,60]
[334224566,1722844354522,-500.0,0.00044657,60]
[334224567,1722844354568,-1106.04,0.00044657,60]
[334224568,1722844354614,-500.0,0.00044657,60]
[334224569,1722844354660,-910.91,0.00044657,60]
[334224570,1722844354707,-500.0,0.00044657,60]
[334224571,1722844354754,-844.82,0.00044657,60]
[334224572,1722844354800,-500.0,0.00044657,60]
[334224573,1722844354847,-1233.92,0.00044657,60]
[334224574,1722844354893,-500.0,0.00044657,60]
[334224575,1722844354939,-500.0,0.00044657,60]
[334224576,1722844354983,-1817.05,0.00044657,60]
[334224577,1722844355030,-663.4,0.00044657,60]
[334224578,1722844355076,-940.29,0.00044657,60]
[334224579,1722844355120,-500.0,0.00044657,60]
[334224580,1722844355164,-2881.09,0.00044657,60]
[334224581,1722844355210,-1193.36,0.00044657,60]
[334224582,1722844355255,-1041.73,0.00044657,60]
[334224583,1722844355300,-500.0,0.00044657,60]
[334224584,1722844355342,-500.0,0.00044657,60]
[334224585,1722844355386,-1889.39,0.00044657,60]
[334224586,1722844355434,-4031.21,0.00044657,60]
[334224587,1722844355485,-575.03,0.00044657,60]
[334224588,1722844355531,-889.77,0.00044657,60]
[334224589,1722844355577,-1021.91,0.00044657,60]
[334224590,1722844355762,-2391.75,0.00044657,60]
[334224591,1722844355810,-500.0,0.00044657,60]
[334224592,1722844355857,-1422.39,0.00044657,60]
[334224593,1722844355905,-1481.83,0.00044657,60]
[334224594,1722844355952,-812.97,0.00044657,60]
[334224595,1722844356004,-500.0,0.00044657,60]
[334224596,1722844356049,-1178.96,0.00044657,60]
[334224597,1722844356096,-500.0,0.00044657,60]
[334224598,1722844356141,-500.0,0.00044657,60]
[334224599,1722844356184,-1524.82,0.00044657,60]
[334224600,1722844356227,-500.0,0.00044657,60]
[334224601,1722844356280,-500.0,0.00044657,60]
[334224602,1722844356329,-500.0,0.00044657,60]
[334224603,1722844356376,-1094.96,0.00044657,60]
[334224604,1722844356423,-2487.48,0.00044657,60]
[334224605,1722844356472,-789.42,0.00044657,60]
[334224606,1722844356517,-1973.1,0.00044657,60]
[334224607,1722844356560,-989.26,0.00044657,60]
[334224608,1722844356603,-500.0,0.00044657,60]
[334224609,1722844356646,-500.0,0.00044657,60]
[334224610,1722844356691,-500.0,0.00044657,60]
[334224611,1722844356733,-1515.92,0.00044657,60]
[334224612,1722844356776,-500.0,0.00044657,60]
[334224613,1722844356820,-2056.28,0.00044657,60]
[334224614,1722844356863,-3337.89,0.00044657,60]
[334224615,1722844356908,-1172.06,0.00044657,60]
[334224616,1722844356953,-500.0,0.00044657,60]
[334224617,1722844356999,-500.0,0.00044657,60]
[334224618,1722844357044,-2779.3,0.00044657,60]
[334224619,1722844357088,-979.35,0.00044657,60]
[334224620,1722844357133,-829.4,0.00044657,60]
[334224621,1722844357179,-4474.14,0.00044657,60]
[334224622,1722844357226,-795.18,0.00044657,60]
[334224623,1722844357269,-1288.51,0.00044657,60]
[334224624,1722844357311,-503.6785323,0.00044657,60]
[334224625,1722844357356,-772.19,0.00044657,60]
[334224626,1722844357401,-1615.12,0.00044657,60]
[334224627,1722844357450,-1472.89,0.00044657,60]
[334224628,1722844357497,-2513.59,0.00044657,60]
[334224629,1722844357539,-500.0,0.00044657,60]
[334224630,1722844357582,-683.57,0.00044657,60]
[334224631,1722844357623,-1121.51,0.00044657,60]
[334224632,1722844357664,-586.11,0.00044657,60]
[334224633,1722844357705,-500.0,0.00044657,60]
[334224634,1722844357748,-3536.48,0.00044657,60]
[334224635,1722844357791,-500.0,0.00044657,60]
[334224636,1722844357833,-677.33,0.00044657,60]
[334224637,1722844357876,-500.0,0.00044657,60]
[334224638,1722844357918,-500.0,0.00044657,60]
[334224639,1722844357962,-500.0,0.00044657,60]
[334224640,1722844358008,-500.0,0.00044657,60]
[334224641,1722844358051,-500.0,0.00044657,60]
[334224642,1722844358095,-500.0,0.00044657,60]
[334224643,1722844358139,-534.3,0.00044657,60]
[334224644,1722844358181,-500.0,0.00044657,60]
[334224645,1722844358227,-500.0,0.00044657,60]
[334224646,1722844358270,-247.27755986,0.00044657,60]
[334224647,1722844358312,-576.41,0.00044657,60]
[334224648,1722844358354,-500.0,0.00044657,60]
[334224649,1722844358398,-500.0,0.00044657,60]
[334224650,1722844358441,-500.0,0.00044657,60]
[334224651,1722844358485,-500.0,0.00044657,60]
[334224652,1722844358526,-1009.49,0.00044657,60]
[334224653,1722844358566,-2105.43,0.00044657,60]
[334224654,1722844358607,-500.0,0.00044657,60]
[334224655,1722844358646,-500.0,0.00044657,60]
[334224656,1722844358687,-585.87,0.00044657,60]
[334224657,1722844358726,-500.0,0.00044657,60]
[334224658,1722844358764,-1492.65,0.00044657,60]
[334224659,1722844358805,-1286.6,0.00044657,60]
[334224660,1722844358846,-1984.69,0.00044657,60]
[334224661,1722844358889,-500.0,0.00044657,60]
[334224662,1722844358931,-500.0,0.00044657,60]
[334224663,1722844358977,-500.0,0.00044657,60]
[334224664,1722844359024,-1639.94,0.00044657,60]
[334224665,1722844359066,-2105.98,0.00044657,60]
[334224666,1722844359107,-1249.4,0.00044657,60]
[334224667,1722844359147,-500.0,0.00044657,60]
[334224668,1722844359189,-962.27,0.00044657,60]
[334224669,1722844359233,-2483.31,0.00044657,60]
[334224670,1722844359276,-1643.1,0.00044657,60]
[334224671,1722844359315,-1511.13,0.00044657,60]
[334224672,1722844359356,-2956.4,0.00044657,60]
[334224673,1722844359396,-500.0,0.00044657,60]
[334224674,1722844359441,-1170.05,0.00044657,60]
[334224675,1722844359488,-500.0,0.00044657,60]
[334224676,1722844359528,-1504.27,0.00044657,60]
[334224677,1722844359566,-754.33,0.00044657,60]
[334224678,1722844359605,-1298.6,0.00044657,60]
[334224679,1722844359998,-500.0,0.00044657,60]
[334224680,1722844360046,-500.0,0.00044657,60]
[334224681,1722844360092,-500.0,0.00044657,60]
[334224682,1722844360137,-722.49,0.00044657,60]
[334224683,1722844360180,-3521.35,0.00044657,60]
[334224684,1722844360227,-1043.13,0.00044657,60]
[334224685,1722844360276,-500.0,0.00044657,60]
[334224686,1722844360318,-936.69,0.00044657,60]
[334224687,1722844360360,-500.0,0.00044657,60]
[334224688,1722844360402,-2164.97,0.00044657,60]
[334224689,1722844360454,-504.07,0.00044657,60]
[334224690,1722844360509,-1861.15,0.00044657,60]
[334224691,1722844360552,-500.0,0.00044657,60]
[334224692,1722844360595,-4515.22,0.00044657,60]
[334224693,1722844360639,-500.0,0.00044657,60]
[334224694,1722844360683,-500.0,0.00044657,60]
[334224695,1722844360731,-776.86,0.00044657,60]
[334224696,1722844360773,-1258.84,0.00044657,60]
[334224697,1722844360816,-500.0,0.00044657,60]
[334224698,1722844360861,-342.02906917,0.00044657,60]
[334224699,1722844360906,-859.54,0.00044657,60]
[334224700,1722844360951,-1478.25,0.00044657,60]
[334224701,1722844360994,-513.56,0.00044657,60]
[334224702,1722844361035,-970.46,0.00044657,60]
[334224703,1722844361077,-585.63,0.00044657,60]
[334224704,1722844361118,-500.0,0.00044657,60]
[334224705,1722844361160,-936.94,0.00044657,60]
[334224706,1722844361202,-705.37,0.00044657,60]
[334224707,1722844361242,-1195.43,0.00044657,60]
[334224708,1722844361283,-1968.5,0.00044657,60]
[334224709,1722844361323,-500.0,0.00044657,60]
[334224710,1722844361364,-2221.06,0.00044657,60]
[334224711,1722844361404,-3474.81,0.00044657,60]
[334224712,1722844361447,-1252.99,0.00044657,60]
[334224713,1722844361489,-1495.03,0.00044657,60]
[334224714,1722844361529,-631.95,0.00044657,60]
[334224715,1722844361569,-1500.6,0.00044657,60]
[334224716,1722844361610,-1569.23,0.00044657,60]
[334224717,1722844361650,-3329.16,0.00044657,60]
[334224718,1722844361690,-500.0,0.00044657,60]
[334224719,1722844361732,-500.0,0.00044657,60]
[334224720,1722844361775,-500.0,0.00044657,60]
[334224721,1722844361820,-500.0,0.00044657,60]
[334224722,1722844361861,-806.66,0.00044657,60]
[334224723,1722844361901,-503.05577013,0.00044657,60]
[334224724,1722844361943,-3499.13,0.00044657,60]
[334224725,1722844361988,-500.0,0.00044657,60]
[334224726,1722844362033,-500.0,0.00044657,60]
[334224727,1722844362078,-500.0,0.00044657,60]
[334224728,1722844362121,-3090.85,0.00044657,60]
[334224729,1722844362166,-500.0,0.00044657,60]
[334224730,1722844362209,-1026.49,0.00044657,60]
[334224731,1722844362253,-2889.59,0.00044657,60]
[334224732,1722844362294,-500.0,0.00044657,60]
[334224733,1722844362334,-500.0,0.00044657,60]
[334224734,1722844362373,-3582.16,0.00044657,60]
[334224735,1722844362415,-1190.05,0.00044657,60]
[334224736,1722844362457,-804.29,0.00044657,60]
[334224737,1722844362500,-648.35,0.00044657,60]
[334224738,1722844362540,-1012.27,0.00044657,60]
[334224739,1722844362582,-500.0,0.00044657,60]
[334224740,1722844362624,-2656.27,0.00044657,60]
[334224741,1722844362665,-3334.46,0.00044657,60]
[334224742,1722844362707,-1816.19,0.00044657,60]
[334224743,1722844362753,-519.71409778,0.00044657,60]
[334224744,1722844362796,-511.61340715,0.00044657,60]
[334224745,1722844362840,-500.0,0.00044657,60]
[334224746,1722844362882,-500.0,0.00044657,60]
[334224747,1722844362924,-1419.38,0.00044657,60]
[334224748,1722844362965,-1205.65,0.00044657,60]
[334224749,1722844363008,-960.05,0.00044657,60]
[334224750,1722844363051,-2829.69,0.00044657,60]
[334224751,1722844363178,-1249.16,0.00044657,60]
[334224752,1722844363220,-500.0,0.00044657,60]
[334224753,1722844363263,-1429.17,0.00044657,60]
[334224754,1722844363303,-2102.16,0.00044657,60]
[334224755,1722844363343,-1239.51,0.00044657,60]
[334224756,1722844363382,-500.0,0.00044657,60]
[334224757,1722844363422,-500.0,0.00044657,60]
[334224758,1722844363466,-1591.86,0.00044657,60]
[334224759,1722844363508,-621.71,0.00044657,60]
[334224760,1722844363550,-2254.38,0.00044657,60]
[334224761,1722844363589,-602.16,0.00044657,60]
[334224762,1722844363628,-540.84,0.00044657,60]
[334224763,1722844363672,-568.86,0.00044657,60]
[334224764,1722844363712,-500.0,0.00044657,60]
[334224765,1722844363752,-1381.56,0.00044657,60]
[334224766,1722844363794,-500.0,0.00044657,60]
[334224767,1722844363836,-990.25,0.00044657,60]
[334224768,1722844363881,-627.42,0.00044657,60]
[334224769,1722844363927,-1387.53,0.00044657,60]
[334224770,1722844363974,-3059.77,0.00044657,60]
[334224771,1722844364017,-500.0,0.00044657,60]
[334224772,1722844364064,-1284.45,0.00044657,60]
[334224773,1722844364108,-2164.6,0.00044657,60]
[334224774,1722844364150,-1060.48,0.00044657,60]
[334224775,1722844364193,-1495.86,0.00044657,60]
[334224776,1722844364233,-780.62,0.00044657,60]
[334224777,1722844364278,-500.0,0.00044657,60]
[334224778,1722844364317,-4606.13,0.00044657,60]
[334224779,1722844364357,-579.6,0.00044657,60]
[334224780,1722844364397,-738.94,0.00044657,60]
[334224781,1722844364441,-500.0,0.00044657,60]
[334224782,1722844364492,-519.54,0.00044657,60]
[334224783,1722844364534,-648.7,0.00044657,60]
[334224784,1722844364577,-1716.06,0.00044657,60]
[334224785,1722844364617,-1963.93,0.00044657,60]
[334224786,1722844364658,-1163.31,0.00044657,60]
[334224787,1722844364699,-3883.3,0.00044657,60]
[334224788,1722844364742,-900.66,0.00044657,60]
[334224789,1722844364784,-1444.52,0.00044657,60]
[334224790,1722844364828,-500.0,0.00044657,60]
[334224791,1722844364871,-1825.76,0.00044657,60]
[334224792,1722844364914,-991.12,0.00044657,60]
[334224793,1722844364957,-1271.73,0.00044657,60]
[334224794,1722844365002,-500.0,0.00044657,60]
[334224795,1722844365046,-500.0,0.00044657,60]
[334224796,1722844365089,-776.44,0.00044657,60]
[334224797,1722844365131,-504.16170371,0.00044657,60]
[334224798,1722844365175,-557.25,0.00044657,60]
[334224799,1722844365217,-500.0,0.00044657,60]
[334224800,1722844365265,-500.0,0.00044657,60]
[334224801,1722844365307,-781.71,0.00044657,60]
[334224802,1722844365348,-2495.7,0.00044657,60]
[334224803,1722844365389,-2245.48,0.00044657,60]
[334224804,1722844365431,-3163.86,0.00044657,60]
[334224805,1722844365474,-500.0,0.00044657,60]
[334224806,1722844365519,-1479.42,0.00044657,60]
[334224807,1722844365561,-2335.18,0.00044657,60]
[334224808,1722844365603,-500.0,0.00044657,60]
[334224809,1722844365646,-2512.24,0.00044657,60]
[334224810,1722844365688,-500.0,0.00044657,60]
[334224811,1722844365735,-501.42698314,0.00044657,60]
[334224812,1722844365776,-500.0,0.00044657,60]
[334224813,1722844365818,-1318.12,0.00044657,60]
[334224814,1722844365859,-500.0,0.00044657,60]
[334224815,1722844365902,-2546.71,0.00044657,60]
[334224816,1722844365944,-2643.24,0.00044657,60]
[334224817,1722844365987,-500.0,0.00044657,60]
[334224818,1722844366030,-3011.57,0.00044657,60]
[334224819,1722844366072,-827.48,0.00044657,60]
[334224820,1722844366114,-500.0,0.00044657,60]
[334224821,1722844366163,-10089.31,0.00044657,60]
[334224822,1722844366207,-194.41672688,0.00044657,60]
[334224823,1722844366250,-500.0,0.00044657,60]
[334224824,1722844366293,-500.0,0.00044657,60]
[334224825,1722844366336,-500.0,0.00044657,60]
[334224826,1722844366382,-500.0,0.00044657,60]
[334224827,1722844366427,-500.0,0.00044657,60]
[334224828,1722844366472,-361.26,0.00044657,60]
[334224829,1722844366520,-500.0,0.00044657,60]
[334224830,1722844366561,-2761.8,0.00044657,60]
[334224831,1722844366601,-875.89,0.00044657,60]
[334224832,1722844366641,-500.0,0.00044657,60]
[334224833,1722844366683,-909.27,0.00044657,60]
[334224834,1722844366728,-1834.13,0.00044657,60]
[334224835,1722844366772,-500.0,0.00044657,60]
[334224836,1722844366819,-500.0,0.00044657,60]
[334224837,1722844366865,-500.0,0.00044657,60]
[334224838,1722844366910,-1594.18,0.00044657,60]
[334224839,1722844366956,-904.65,0.00044657,60]
[334224840,1722844367000,-500.0,0.00044657,60]
[334224841,1722844367045,-500.0,0.00044657,60]
[334224842,1722844367089,-1166.66,0.00044657,60]
[334224843,1722844367131,-500.0,0.00044657,60]
[334224844,1722844367176,-500.0,0.00044657,60]
[334224845,1722844367219,-3601.46,0.00044657,60]
[334224846,1722844367262,-927.02,0.00044657,60]
[334224847,1722844367305,-3723.72,0.00044657,60]
[334224848,1722844367347,-5377.57,0.00044657,60]
[334224849,1722844367392,-23612.73,0.00044657,60]
[334224850,1722844367437,-500.0,0.00044657,60]
[334224851,1722844367485,-500.0,0.00044657,60]
[334224852,1722844367531,-2267.85,0.00044657,60]
[334224853,1722844367574,-500.0,0.00044657,60]
[334224854,1722844367617,-1760.51,0.00044657,60]
[334224855,1722844367797,-2589.98,0.00044657,60]
[334224856,1722844367843,-856.68,0.00044657,60]
[334224857,1722844367888,-2428.43,0.00044657,60]
[334224858,1722844367931,-6443.39,0.00044657,60]
[334224859,1722844367980,-844.83,0.00044657,60]
[334224860,1722844368026,-1790.38,0.00044657,60]
[334224861,1722844368073,-500.0,0.00044657,60]
[334224862,1722844368118,-1239.85,0.00044657,60]
[334224863,1722844368164,-510.38950419,0.00044657,60]
[334224864,1722844368214,-2135.68,0.00044657,60]
[334224865,1722844368262,-7781.8,0.00044657,60]
[334224866,1722844368306,-500.0,0.00044657,60]
[334224867,1722844368349,-502.36851312,0.00044657,60]
[334224868,1722844368393,-500.0,0.00044657,60]
[334224869,1722844368440,-3762.63,0.00044657,60]
[334224870,1722844368488,-12434.34,0.00044657,60]
[334224871,1722844368533,-500.0,0.00044657,60]
[334224872,1722844368579,-500.0,0.00044657,60]
[334224873,1722844368629,-29175.13,0.00044657,60]
[334224874,1722844368676,-2229.68,0.00044657,60]
[334224875,1722844368720,-3079.71,0.00044657,60]
[334224876,1722844368768,-2685.43,0.00044657,60]
[334224877,1722844368817,-1702.7,0.00044657,60]
[334224878,1722844368865,-12156.11,0.00044657,60]
[334224879,1722844368913,-676.45,0.00044657,60]
[334224880,1722844368959,-500.7170624,0.00044657,60]
[334224881,1722844369009,-500.0,0.00044657,60]
[334224882,1722844369058,-11527.03,0.00044657,60]
[334224883,1722844369104,-5533.89,0.00044657,60]
[334224884,1722844369150,-500.0,0.00044657,60]
[334224885,1722844369197,-1147.24,0.00044657,60]
[334224886,1722844369245,-2942.99,0.00044657,60]
[334224887,1722844369294,-500.0,0.00044657,60]
[334224888,1722844369340,-500.0,0.00044657,60]
[334224889,1722844369386,-500.0,0.00044657,60]
[334224890,1722844369431,-966.49,0.00044657,60]
[334224891,1722844369479,-7052.9,0.00044657,60]
[334224892,1722844369524,-504.77541496,0.00044657,60]
[334224893,1722844369569,-500.0,0.00044657,60]
[334224894,1722844369611,-1533.46,0.00044657,60]
[334224895,1722844369654,-1600.86,0.00044657,60]
[334224896,1722844369700,-500.0,0.00044657,60]
[334224897,1722844369752,-2844.29,0.00044657,60]
[334224898,1722844369797,-500.0,0.00044657,60]
[334224899,1722844369842,-4113.34,0.00044657,60]
[334224900,1722844369888,-1215.01,0.00044657,60]
[334224901,1722844369935,-1182.78,0.00044657,60]
[334224902,1722844369986,-500.0,0.00044657,60]
[334224903,1722844370030,-7563.74,0.00044657,60]
[334224904,1722844370075,-885.81,0.00044657,60]
[334224905,1722844370119,-2342.88,0.00044657,60]
[334224906,1722844370163,-533.58,0.00044657,60]
[334224907,1722844370211,-600.6,0.00044657,60]
[334224908,1722844370264,-500.0,0.00044657,60]
[334224909,1722844370304,-2470.61,0.00044657,60]
[334224910,1722844370346,-1107.73,0.00044657,60]
[334224911,1722844370386,-3795.26,0.00044657,60]
[334224912,1722844370430,-623.25,0.00044657,60]
[334224913,1722844370473,-2147.31,0.00044657,60]
[334224914,1722844370524,-11685.73,0.00044657,60]
[334224915,1722844370567,-500.0,0.00044657,60]
[334224916,1722844370609,-658.81,0.00044657,60]
[334224917,1722844370651,-4333.16,0.00044657,60]
[334224918,1722844370692,-500.0,0.00044657,60]
[334224919,1722844370734,-500.0,0.00044657,60]
[334224920,1722844370775,-3360.52,0.00044657,60]
[334224921,1722844370817,-2451.49,0.00044657,60]
[334224922,1722844370860,-2337.27,0.00044657,60]
[334224923,1722844370903,-5093.48,0.00044657,60]
[334224924,1722844370948,-780.37,0.00044657,60]
[334224925,1722844370992,-1845.9,0.00044657,60]
[334224926,1722844371036,-1210.22,0.00044657,60]
[334224927,1722844371079,-500.0,0.00044657,60]
[334224928,1722844371122,-194.8357668,0.00044657,60]